[Event "Live Chess"]
[Site "Chess.com"]
[Date "2023.05.21"]
[Round "-"]
[White "profpirate4"]
[Black "MJMykh"]
[Result "1-0"]
[WhiteElo "1269"]
[BlackElo "1116"]
[TimeControl "300"]
[EndTime "0:53:04 PDT"]
[Termination "profpirate4 won by checkmate"]

1. e4 {[%clk 0:04:57.4]} 1... e5 {[%clk 0:04:58.5]} 2. f4 {[%clk 0:04:56.8]}
2... exf4 {[%clk 0:04:57.2]} 3. Nf3 {[%clk 0:04:54.6]} 3... Nc6 {[%clk 0:04:56]}
4. Bc4 {[%clk 0:04:51.4]} 4... h6 {[%clk 0:04:54.2]} 5. d3 {[%clk 0:04:50.5]}
5... Nf6 {[%clk 0:04:51.5]} 6. Bxf4 {[%clk 0:04:48.6]} 6... Bb4+ {[%clk
0:04:51]} 7. c3 {[%clk 0:04:45.7]} 7... Bc5 {[%clk 0:04:49.1]} 8. d4 {[%clk
0:04:44.3]} 8... Be7 {[%clk 0:04:46.2]} 9. e5 {[%clk 0:04:42.7]} 9... Nh5 {[%clk
0:04:41.7]} 10. O-O {[%clk 0:04:38.3]} 10... Nxf4 {[%clk 0:04:40.3]} 11. Nh4
{[%clk 0:04:25]} 11... Bxh4 {[%clk 0:04:37.4]} 12. Rxf4 {[%clk 0:04:23.8]} 12...
O-O {[%clk 0:04:28.5]} 13. Qg4 {[%clk 0:04:17.3]} 13... Qg5 {[%clk 0:04:22.9]}
14. Qxh4 {[%clk 0:04:14.6]} 14... Qxh4 {[%clk 0:04:16.4]} 15. Rxh4 {[%clk
0:04:12.8]} 15... Na5 {[%clk 0:04:14.6]} 16. Bd3 {[%clk 0:04:09.6]} 16... d6
{[%clk 0:04:06.9]} 17. Re4 {[%clk 0:03:58]} 17... dxe5 {[%clk 0:04:05.4]} 18.
Rxe5 {[%clk 0:03:56.5]} 18... Nc6 {[%clk 0:04:03.3]} 19. Re3 {[%clk 0:03:51.8]}
19... a6 {[%clk 0:03:58.3]} 20. Nd2 {[%clk 0:03:50.2]} 20... Nd8 {[%clk
0:03:55.2]} 21. Nf3 {[%clk 0:03:46.9]} 21... Bg4 {[%clk 0:03:53.4]} 22. Rf1
{[%clk 0:03:42.1]} 22... Bxf3 {[%clk 0:03:52.2]} 23. Rfxf3 {[%clk 0:03:40.7]}
23... Ne6 {[%clk 0:03:46.9]} 24. Bc4 {[%clk 0:03:36.3]} 24... Ng5 {[%clk
0:03:43.1]} 25. Rg3 {[%clk 0:03:31.8]} 25... Rae8 {[%clk 0:03:35.4]} 26. h4
{[%clk 0:03:16.5]} 26... Rxe3 {[%clk 0:03:31.3]} 27. Rxe3 {[%clk 0:03:15.5]}
27... Nh7 {[%clk 0:03:28.1]} 28. Re7 {[%clk 0:03:12.3]} 28... Rc8 {[%clk
0:03:06.8]} 29. Bxf7+ {[%clk 0:03:05.6]} 29... Kf8 {[%clk 0:03:05.2]} 30. Be6
{[%clk 0:02:58.6]} 30... Kxe7 {[%clk 0:02:59.1]} 31. Bxc8 {[%clk 0:02:57.1]}
31... Nf6 {[%clk 0:02:55.6]} 32. Bxb7 {[%clk 0:02:55.9]} 32... a5 {[%clk
0:02:54.4]} 33. b4 {[%clk 0:02:50.5]} 33... axb4 {[%clk 0:02:53.2]} 34. cxb4
{[%clk 0:02:49.4]} 34... Nd7 {[%clk 0:02:52.7]} 35. a4 {[%clk 0:02:46.1]} 35...
Nb6 {[%clk 0:02:51.4]} 36. a5 {[%clk 0:02:43.4]} 36... Nd7 {[%clk 0:02:46.4]}
37. Kf2 {[%clk 0:02:35.7]} 37... g5 {[%clk 0:02:43]} 38. g3 {[%clk 0:02:32.2]}
38... gxh4 {[%clk 0:02:41.9]} 39. gxh4 {[%clk 0:02:31.1]} 39... Kf6 {[%clk
0:02:41]} 40. Kg3 {[%clk 0:02:30]} 40... Kf5 {[%clk 0:02:40]} 41. Bc6 {[%clk
0:02:27.3]} 41... Nb8 {[%clk 0:02:36.9]} 42. b5 {[%clk 0:02:25]} 42... h5 {[%clk
0:02:33.2]} 43. a6 {[%clk 0:02:23.3]} 43... Ke6 {[%clk 0:02:26.7]} 44. a7 {[%clk
0:02:19.7]} 44... Nxc6 {[%clk 0:02:22.9]} 45. a8=Q {[%clk 0:02:17.6]} 45... Kd5
{[%clk 0:02:22.5]} 46. Qxc6+ {[%clk 0:02:15.8]} 46... Kxd4 {[%clk 0:02:22.4]}
47. Qxc7 {[%clk 0:02:14.6]} 47... Kd3 {[%clk 0:02:22.1]} 48. b6 {[%clk
0:02:13.6]} 48... Ke4 {[%clk 0:02:20.6]} 49. b7 {[%clk 0:02:13.1]} 49... Kf5
{[%clk 0:02:17.4]} 50. b8=R {[%clk 0:02:11.3]} 50... Ke4 {[%clk 0:02:16.4]} 51.
Rf8 {[%clk 0:02:08.7]} 51... Kd5 {[%clk 0:02:15]} 52. Qe7 {[%clk 0:02:06.6]}
52... Kd4 {[%clk 0:02:13.7]} 53. Rd8+ {[%clk 0:02:05.8]} 53... Kc3 {[%clk
0:02:12.4]} 54. Qc7+ {[%clk 0:02:05.7]} 54... Kb4 {[%clk 0:02:10.7]} 55. Rb8+
{[%clk 0:02:05.6]} 55... Ka3 {[%clk 0:02:10.6]} 56. Qa7# {[%clk 0:02:04.8]} 1-0

[Event "Live Chess"]
[Site "Chess.com"]
[Date "2023.05.21"]
[Round "-"]
[White "Biranidun"]
[Black "mirandaasilva"]
[Result "1-0"]
[WhiteElo "2534"]
[BlackElo "1643"]
[TimeControl "300"]
[EndTime "0:53:22 PDT"]
[Termination "Biranidun won by checkmate"]

1. e4 {[%clk 0:04:59.1]} 1... c5 {[%clk 0:04:56.8]} 2. Nf3 {[%clk 0:04:57.4]}
2... d6 {[%clk 0:04:53.1]} 3. d4 {[%clk 0:04:56.9]} 3... cxd4 {[%clk 0:04:51.8]}
4. Nxd4 {[%clk 0:04:56.8]} 4... Nf6 {[%clk 0:04:49.7]} 5. Nc3 {[%clk 0:04:56.3]}
5... g6 {[%clk 0:04:48.2]} 6. Be3 {[%clk 0:04:55.8]} 6... Bg7 {[%clk 0:04:46.7]}
7. f3 {[%clk 0:04:55.4]} 7... O-O {[%clk 0:04:42.5]} 8. Qd2 {[%clk 0:04:54.9]}
8... Qa5 {[%clk 0:04:37.3]} 9. Bc4 {[%clk 0:04:49.8]} 9... Nfd7 {[%clk
0:04:34.3]} 10. O-O-O {[%clk 0:04:48]} 10... Nc6 {[%clk 0:04:31.4]} 11. h4
{[%clk 0:04:45.5]} 11... Nxd4 {[%clk 0:04:28.2]} 12. Bxd4 {[%clk 0:04:44.6]}
12... Bxd4 {[%clk 0:04:27.1]} 13. Qxd4 {[%clk 0:04:44.5]} 13... Ne5 {[%clk
0:04:26.4]} 14. Bb3 {[%clk 0:04:43.4]} 14... h5 {[%clk 0:04:21.3]} 15. Nd5
{[%clk 0:04:41.9]} 15... Qd8 {[%clk 0:04:16.3]} 16. g4 {[%clk 0:04:39.2]} 16...
Nxf3 {[%clk 0:04:13.6]} 17. Qe3 {[%clk 0:04:33.6]} 17... hxg4 {[%clk 0:04:12.9]}
18. h5 {[%clk 0:04:32.5]} 18... g5 {[%clk 0:04:04]} 19. e5 {[%clk 0:04:30.3]}
19... a5 {[%clk 0:03:31.7]} 20. exd6 {[%clk 0:04:26.6]} 20... exd6 {[%clk
0:03:23.2]} 21. Ne7+ {[%clk 0:04:24.8]} 21... Kh7 {[%clk 0:03:19.9]} 22. Qd3+
{[%clk 0:04:08.3]} 22... f5 {[%clk 0:03:09.4]} 23. Ng6 {[%clk 0:04:06.7]} 23...
Rf6 {[%clk 0:03:05.3]} 24. Bd5 {[%clk 0:03:58.6]} 24... Ne5 {[%clk 0:02:51.9]}
25. Nxe5 {[%clk 0:03:52.4]} 25... Bd7 {[%clk 0:02:19.9]} 26. Nxg4 {[%clk
0:03:48]} 26... Rf8 {[%clk 0:02:14.3]} 27. h6 {[%clk 0:03:45.9]} 27... Qe7
{[%clk 0:02:10.1]} 28. Rde1 {[%clk 0:03:44.2]} 28... Qd8 {[%clk 0:02:06]} 29.
Qd4 {[%clk 0:03:43.1]} 29... Be8 {[%clk 0:01:58.9]} 30. Qg7# {[%clk 0:03:41.5]}
1-0

[Event "Live Chess"]
[Site "Chess.com"]
[Date "2023.05.21"]
[Round "-"]
[White "maxwalden"]
[Black "RamsayFlayer"]
[Result "0-1"]
[WhiteElo "1210"]
[BlackElo "1984"]
[TimeControl "300"]
[EndTime "0:53:22 PDT"]
[Termination "RamsayFlayer won by resignation"]

1. d4 {[%clk 0:04:58.2]} 1... d5 {[%clk 0:04:58.6]} 2. c4 {[%clk 0:04:57.5]}
2... dxc4 {[%clk 0:04:58.5]} 3. Nc3 {[%clk 0:04:56.2]} 3... Nc6 {[%clk
0:04:57.7]} 4. Bf4 {[%clk 0:04:53]} 4... Qxd4 {[%clk 0:04:53.5]} 5. Qxd4 {[%clk
0:04:50.5]} 5... Nxd4 {[%clk 0:04:53.4]} 6. Rc1 {[%clk 0:04:45.4]} 6... Bf5
{[%clk 0:04:42.1]} 7. e3 {[%clk 0:04:43.9]} 7... Nc2+ {[%clk 0:04:39.9]} 8. Kd2
{[%clk 0:04:42.9]} 8... O-O-O+ {[%clk 0:04:29.5]} 9. Ke2 {[%clk 0:04:42]} 9...
Bd3+ {[%clk 0:04:25.1]} 10. Kf3 {[%clk 0:04:40.3]} 10... f6 {[%clk 0:04:18.9]}
11. Bxd3 {[%clk 0:04:38.8]} 11... cxd3 {[%clk 0:04:17.1]} 12. e4 {[%clk
0:04:34.3]} 12... e5 {[%clk 0:04:15.8]} 13. Bd2 {[%clk 0:04:32.3]} 13... Bc5
{[%clk 0:04:09]} 14. Nd5 {[%clk 0:04:29.2]} 14... Bd4 {[%clk 0:04:05.9]} 15. Be3
{[%clk 0:04:22.3]} 15... Bxb2 {[%clk 0:04:03.1]} 16. Rb1 {[%clk 0:04:16.5]}
16... Nxe3 {[%clk 0:03:59.3]} 17. Kxe3 {[%clk 0:04:15.2]} 17... Bd4+ {[%clk
0:03:55.8]} 18. Kd2 {[%clk 0:04:13.4]} 18... Bxf2 {[%clk 0:03:52.4]} 19. Nf3
{[%clk 0:04:10.5]} 19... c6 {[%clk 0:03:49.2]} 20. Nb4 {[%clk 0:04:07.9]} 20...
Nh6 {[%clk 0:03:39.5]} 21. Nxd3 {[%clk 0:04:06.8]} 21... Ng4 {[%clk 0:03:29.6]}
22. Ke2 {[%clk 0:04:03.6]} 22... Bb6 {[%clk 0:03:24.7]} 23. h3 {[%clk
0:03:56.7]} 23... Rxd3 {[%clk 0:03:22]} 24. Kxd3 {[%clk 0:03:54.4]} 24... Nf2+
{[%clk 0:03:21]} 25. Kc4 {[%clk 0:03:52]} 25... Nxh1 {[%clk 0:03:20]} 26. Rxh1
{[%clk 0:03:51.9]} 26... Rd8 {[%clk 0:03:15.9]} 27. a4 {[%clk 0:03:46.2]} 27...
Kd7 {[%clk 0:03:08.1]} 28. Rd1+ {[%clk 0:03:41.1]} 28... Ke6 {[%clk 0:03:06.6]}
29. Rxd8 {[%clk 0:03:39.7]} 29... Bxd8 {[%clk 0:03:06.5]} 30. Nd2 {[%clk
0:03:38.3]} 30... a6 {[%clk 0:03:03.2]} 31. g4 {[%clk 0:03:35.7]} 31... b5+
{[%clk 0:03:01.7]} 32. axb5 {[%clk 0:03:34.5]} 32... cxb5+ {[%clk 0:02:59.8]}
33. Kb4 {[%clk 0:03:33.7]} 33... Bb6 {[%clk 0:02:54.1]} 34. Nb3 {[%clk
0:03:31.1]} 34... g6 {[%clk 0:02:51.5]} 35. Nc5+ {[%clk 0:03:20.4]} 35... Bxc5+
{[%clk 0:02:50.2]} 36. Kxc5 {[%clk 0:03:19.7]} 36... f5 {[%clk 0:02:49.4]} 37.
gxf5+ {[%clk 0:03:15.6]} 37... gxf5 {[%clk 0:02:49.3]} 38. exf5+ {[%clk
0:03:14.7]} 38... Kxf5 {[%clk 0:02:49.2]} 39. Kb4 {[%clk 0:03:13.6]} 39... e4
{[%clk 0:02:48.1]} 0-1

[Event "Live Chess"]
[Site "Chess.com"]
[Date "2023.05.21"]
[Round "-"]
[White "BillythekidFellowes"]
[Black "WelshTiger"]
[Result "0-1"]
[WhiteElo "2040"]
[BlackElo "2363"]
[TimeControl "300"]
[EndTime "0:53:40 PDT"]
[Termination "WelshTiger won by resignation"]

1. e4 {[%clk 0:04:53.6]} 1... c5 {[%clk 0:04:58.3]} 2. Nf3 {[%clk 0:04:50.4]}
2... d6 {[%clk 0:04:57.5]} 3. d4 {[%clk 0:04:49.7]} 3... cxd4 {[%clk 0:04:57]}
4. Qxd4 {[%clk 0:04:49.6]} 4... a6 {[%clk 0:04:54.7]} 5. Nc3 {[%clk 0:04:47.7]}
5... Nf6 {[%clk 0:04:53.4]} 6. Bg5 {[%clk 0:04:46.6]} 6... Nc6 {[%clk
0:04:46.4]} 7. Qd2 {[%clk 0:04:32.4]} 7... e6 {[%clk 0:04:45.8]} 8. O-O-O {[%clk
0:04:30.2]} 8... Be7 {[%clk 0:04:45.2]} 9. Bc4 {[%clk 0:04:29.4]} 9... b5 {[%clk
0:04:41.2]} 10. Bb3 {[%clk 0:04:27.8]} 10... Qc7 {[%clk 0:04:40.7]} 11. Rhe1
{[%clk 0:04:25.9]} 11... O-O {[%clk 0:04:33.3]} 12. Bf4 {[%clk 0:04:21.7]} 12...
Ne5 {[%clk 0:04:29.7]} 13. Nxe5 {[%clk 0:04:07.2]} 13... dxe5 {[%clk 0:04:29.6]}
14. Bg3 {[%clk 0:04:06.6]} 14... Bb7 {[%clk 0:04:25.1]} 15. f3 {[%clk
0:04:04.6]} 15... Bc6 {[%clk 0:04:18.9]} 16. Qg5 {[%clk 0:04:03.4]} 16... Nxe4
{[%clk 0:03:57.6]} 17. Qh5 {[%clk 0:03:54.1]} 17... Nxg3 {[%clk 0:03:33.5]} 18.
hxg3 {[%clk 0:03:54]} 18... Bf6 {[%clk 0:03:27.5]} 19. g4 {[%clk 0:03:49.9]}
19... h6 {[%clk 0:03:26.9]} 20. Rh1 {[%clk 0:03:22.3]} 20... Rad8 {[%clk
0:03:25.8]} 21. Ne2 {[%clk 0:03:15.1]} 21... Rxd1+ {[%clk 0:03:21.4]} 22. Rxd1
{[%clk 0:03:15]} 22... Rd8 {[%clk 0:03:20.7]} 23. Rh1 {[%clk 0:03:10.1]} 23...
Qd6 {[%clk 0:03:00.7]} 24. a3 {[%clk 0:03:03.9]} 24... Qd2+ {[%clk 0:02:58.8]}
25. Kb1 {[%clk 0:03:00.9]} 25... Qxe2 {[%clk 0:02:58.4]} 26. g5 {[%clk
0:02:56.4]} 26... Bxg5 {[%clk 0:02:55.7]} 27. f4 {[%clk 0:02:48.5]} 27... Qxh5
{[%clk 0:02:50.5]} 28. Rxh5 {[%clk 0:02:47.9]} 28... Bxf4 {[%clk 0:02:49.7]} 0-1

[Event "Live Chess"]
[Site "Chess.com"]
[Date "2023.05.21"]
[Round "-"]
[White "Leonid_Starozhilov"]
[Black "JohanKjeldahl"]
[Result "1-0"]
[WhiteElo "2654"]
[BlackElo "1899"]
[TimeControl "300"]
[EndTime "0:53:44 PDT"]
[Termination "Leonid_Starozhilov won by resignation"]

1. e4 {[%clk 0:04:58.9]} 1... c5 {[%clk 0:04:57.6]} 2. Nf3 {[%clk 0:04:57.6]}
2... e6 {[%clk 0:04:56.3]} 3. c4 {[%clk 0:04:56]} 3... Nc6 {[%clk 0:04:54.1]} 4.
Nc3 {[%clk 0:04:55.9]} 4... a6 {[%clk 0:04:52.1]} 5. d4 {[%clk 0:04:54.6]} 5...
cxd4 {[%clk 0:04:50.3]} 6. Nxd4 {[%clk 0:04:54.5]} 6... Qc7 {[%clk 0:04:49.2]}
7. a3 {[%clk 0:04:52.5]} 7... Nf6 {[%clk 0:04:47.9]} 8. Be3 {[%clk 0:04:51.8]}
8... Be7 {[%clk 0:04:46.4]} 9. Rc1 {[%clk 0:04:50.2]} 9... O-O {[%clk
0:04:43.4]} 10. Be2 {[%clk 0:04:49.5]} 10... b6 {[%clk 0:04:38.1]} 11. Nd5
{[%clk 0:04:45]} 11... exd5 {[%clk 0:04:34.6]} 12. cxd5 {[%clk 0:04:44]} 12...
Bb7 {[%clk 0:04:32.6]} 13. O-O {[%clk 0:04:42.6]} 13... Rac8 {[%clk 0:04:27.3]}
14. dxc6 {[%clk 0:04:38.5]} 14... dxc6 {[%clk 0:04:24.8]} 15. f3 {[%clk
0:04:36.9]} 15... c5 {[%clk 0:04:22.3]} 16. Nf5 {[%clk 0:04:34.2]} 16... Rfd8
{[%clk 0:04:18.9]} 17. Qe1 {[%clk 0:04:33.1]} 17... Bf8 {[%clk 0:04:13.3]} 18.
Qh4 {[%clk 0:04:28]} 18... Qe5 {[%clk 0:03:57.1]} 19. Rc2 {[%clk 0:04:15.3]}
19... g6 {[%clk 0:03:42.8]} 20. Nh6+ {[%clk 0:04:08.5]} 20... Kg7 {[%clk
0:03:30]} 21. Bc4 {[%clk 0:04:05.8]} 21... Rd7 {[%clk 0:03:21.3]} 22. Nxf7
{[%clk 0:03:51.5]} 22... Rxf7 {[%clk 0:03:18.6]} 23. Bxf7 {[%clk 0:03:45.7]}
23... Kxf7 {[%clk 0:03:17]} 24. Rd1 {[%clk 0:03:44.6]} 24... Bg7 {[%clk
0:03:10.5]} 25. Rcd2 {[%clk 0:03:41.6]} 25... Bc6 {[%clk 0:03:06.8]} 26. Bf4
{[%clk 0:03:34.9]} 26... Qe7 {[%clk 0:02:59]} 27. Bg5 {[%clk 0:03:29.4]} 27...
h5 {[%clk 0:02:45.8]} 28. Qf4 {[%clk 0:03:23]} 28... Ke6 {[%clk 0:02:10.6]} 29.
Rd6+ {[%clk 0:03:16.5]} 29... Kf7 {[%clk 0:02:04.5]} 30. e5 {[%clk 0:03:15.8]}
1-0

[Event "Live Chess"]
[Site "Chess.com"]
[Date "2023.05.21"]
[Round "-"]
[White "MarkLim1"]
[Black "Singapourfeuj"]
[Result "0-1"]
[WhiteElo "1687"]
[BlackElo "2187"]
[TimeControl "300"]
[EndTime "0:53:56 PDT"]
[Termination "Singapourfeuj won by checkmate"]

1. d4 {[%clk 0:04:59.4]} 1... Nf6 {[%clk 0:04:58.8]} 2. Nf3 {[%clk 0:04:58.7]}
2... g6 {[%clk 0:04:57.8]} 3. c4 {[%clk 0:04:58.1]} 3... Bg7 {[%clk 0:04:57.1]}
4. Nc3 {[%clk 0:04:57.5]} 4... O-O {[%clk 0:04:56.3]} 5. e4 {[%clk 0:04:56.9]}
5... d6 {[%clk 0:04:55.4]} 6. Be2 {[%clk 0:04:56.4]} 6... e5 {[%clk 0:04:54.6]}
7. d5 {[%clk 0:04:55.4]} 7... a5 {[%clk 0:04:53.7]} 8. O-O {[%clk 0:04:54.4]}
8... c6 {[%clk 0:04:50.6]} 9. Bg5 {[%clk 0:04:45.9]} 9... h6 {[%clk 0:04:49.5]}
10. Bh4 {[%clk 0:04:43.3]} 10... cxd5 {[%clk 0:04:45.3]} 11. Nxd5 {[%clk
0:04:41.8]} 11... g5 {[%clk 0:04:44.4]} 12. Bg3 {[%clk 0:04:40.8]} 12... Nxd5
{[%clk 0:04:43.3]} 13. cxd5 {[%clk 0:04:37.6]} 13... f5 {[%clk 0:04:40.3]} 14.
exf5 {[%clk 0:04:36.3]} 14... Bxf5 {[%clk 0:04:39.3]} 15. Rc1 {[%clk 0:04:33.8]}
15... Nd7 {[%clk 0:04:37.6]} 16. Bb5 {[%clk 0:04:30.1]} 16... Nc5 {[%clk
0:04:36.4]} 17. Nd2 {[%clk 0:04:21.6]} 17... a4 {[%clk 0:04:20]} 18. Nc4 {[%clk
0:04:19.7]} 18... Qf6 {[%clk 0:04:12.5]} 19. f3 {[%clk 0:04:12.1]} 19... Nd3
{[%clk 0:04:08.1]} 20. Rc3 {[%clk 0:04:09.8]} 20... Nf4 {[%clk 0:04:06.4]} 21.
Re1 {[%clk 0:03:56.3]} 21... h5 {[%clk 0:04:04.1]} 22. Bxa4 {[%clk 0:03:52.2]}
22... h4 {[%clk 0:04:02.5]} 23. Bf2 {[%clk 0:03:45.2]} 23... Qg6 {[%clk
0:03:58.1]} 24. Bb3 {[%clk 0:03:43.2]} 24... g4 {[%clk 0:03:56.4]} 25. fxg4
{[%clk 0:03:37.9]} 25... Bxg4 {[%clk 0:03:54.4]} 26. Qc2 {[%clk 0:03:33.2]}
26... Bf5 {[%clk 0:03:52.9]} 27. Qd2 {[%clk 0:03:24.2]} 27... Qxg2# {[%clk
0:03:51]} 0-1

[Event "Live Chess"]
[Site "Chess.com"]
[Date "2023.05.21"]
[Round "-"]
[White "OSmith06"]
[Black "quantum_void"]
[Result "0-1"]
[WhiteElo "1642"]
[BlackElo "1506"]
[TimeControl "300"]
[EndTime "0:54:00 PDT"]
[Termination "quantum_void won by resignation"]

1. e4 {[%clk 0:04:59.6]} 1... e6 {[%clk 0:04:58.4]} 2. d4 {[%clk 0:04:58.3]}
2... d5 {[%clk 0:04:58]} 3. Nd2 {[%clk 0:04:57.6]} 3... Nf6 {[%clk 0:04:55.1]}
4. e5 {[%clk 0:04:56.7]} 4... Nfd7 {[%clk 0:04:54.7]} 5. Bd3 {[%clk 0:04:56.2]}
5... c5 {[%clk 0:04:53.7]} 6. c3 {[%clk 0:04:55.8]} 6... cxd4 {[%clk 0:04:52.1]}
7. cxd4 {[%clk 0:04:55.7]} 7... Nc6 {[%clk 0:04:50.9]} 8. Ne2 {[%clk 0:04:55.1]}
8... Be7 {[%clk 0:04:47.1]} 9. Nf3 {[%clk 0:04:54]} 9... O-O {[%clk 0:04:46.4]}
10. O-O {[%clk 0:04:53.1]} 10... f6 {[%clk 0:04:44.4]} 11. exf6 {[%clk 0:04:52]}
11... Nxf6 {[%clk 0:04:43.1]} 12. Bg5 {[%clk 0:04:38.2]} 12... Qc7 {[%clk
0:04:36.2]} 13. Bf4 {[%clk 0:04:32.6]} 13... Bd6 {[%clk 0:04:34]} 14. Bxd6
{[%clk 0:04:30.4]} 14... Qxd6 {[%clk 0:04:32.6]} 15. Qd2 {[%clk 0:04:24.7]}
15... Ne7 {[%clk 0:04:26.9]} 16. Ne5 {[%clk 0:04:21.9]} 16... Bd7 {[%clk
0:04:20.3]} 17. Nf4 {[%clk 0:04:09.4]} 17... Nc6 {[%clk 0:04:18.2]} 18. Nxd7
{[%clk 0:03:59.5]} 18... Qxd7 {[%clk 0:04:15.9]} 19. Qe3 {[%clk 0:03:54.4]}
19... Rae8 {[%clk 0:04:10.5]} 20. Rfe1 {[%clk 0:03:51.7]} 20... Nb4 {[%clk
0:03:52.9]} 21. a3 {[%clk 0:03:24.7]} 21... Nxd3 {[%clk 0:03:51.6]} 22. Nxd3
{[%clk 0:03:24.6]} 22... Ne4 {[%clk 0:03:50.6]} 23. Ne5 {[%clk 0:03:23.3]} 23...
Qb5 {[%clk 0:03:46.2]} 24. f3 {[%clk 0:03:17.4]} 24... Nf6 {[%clk 0:03:37.9]}
25. b4 {[%clk 0:03:02.2]} 25... a5 {[%clk 0:03:30.8]} 26. bxa5 {[%clk
0:02:45.5]} 26... Qxa5 {[%clk 0:03:29.3]} 27. Rec1 {[%clk 0:02:40.5]} 27... Nh5
{[%clk 0:03:21]} 28. Rab1 {[%clk 0:02:26.5]} 28... b5 {[%clk 0:03:10.5]} 29. Rc5
{[%clk 0:02:17.2]} 29... Qa4 {[%clk 0:03:09.4]} 30. Rcxb5 {[%clk 0:02:07.3]}
30... Nf4 {[%clk 0:03:05.1]} 31. R5b4 {[%clk 0:01:58.2]} 31... Qc2 {[%clk
0:03:03.4]} 32. R4b2 {[%clk 0:01:48]} 32... Qf5 {[%clk 0:03:01.9]} 33. a4 {[%clk
0:01:40.2]} 33... Qg5 {[%clk 0:03:00.2]} 34. Qf2 {[%clk 0:01:32.2]} 34... Nh3+
{[%clk 0:02:57.5]} 35. Kf1 {[%clk 0:01:28.7]} 35... Nxf2 {[%clk 0:02:57.1]} 36.
Kxf2 {[%clk 0:01:26.1]} 36... Qh4+ {[%clk 0:02:54.5]} 37. Ke2 {[%clk 0:01:22.2]}
37... Qxd4 {[%clk 0:02:53.4]} 0-1

[Event "Live Chess"]
[Site "Chess.com"]
[Date "2023.05.21"]
[Round "-"]
[White "raminguy"]
[Black "whitedjohn"]
[Result "1-0"]
[WhiteElo "1944"]
[BlackElo "1643"]
[TimeControl "300"]
[EndTime "0:54:12 PDT"]
[Termination "raminguy won by checkmate"]

1. d4 {[%clk 0:04:59.2]} 1... Nf6 {[%clk 0:04:58.3]} 2. Nc3 {[%clk 0:04:58.4]}
2... d5 {[%clk 0:04:56.8]} 3. Bf4 {[%clk 0:04:57.7]} 3... c6 {[%clk 0:04:54.9]}
4. e3 {[%clk 0:04:56.7]} 4... g6 {[%clk 0:04:52]} 5. h4 {[%clk 0:04:55]} 5...
Bg7 {[%clk 0:04:50.7]} 6. Bd3 {[%clk 0:04:53.6]} 6... O-O {[%clk 0:04:48.6]} 7.
h5 {[%clk 0:04:52.4]} 7... Bg4 {[%clk 0:04:45.1]} 8. f3 {[%clk 0:04:51.1]} 8...
Bxh5 {[%clk 0:04:43.4]} 9. g4 {[%clk 0:04:50.2]} 9... Nbd7 {[%clk 0:04:40.7]}
10. gxh5 {[%clk 0:04:48.8]} 10... Nxh5 {[%clk 0:04:39.7]} 11. Rxh5 {[%clk
0:04:46.4]} 11... gxh5 {[%clk 0:04:38.6]} 12. Qe2 {[%clk 0:04:45.4]} 12... Nf6
{[%clk 0:04:35.3]} 13. Qh2 {[%clk 0:04:43.2]} 13... Qb6 {[%clk 0:04:14.9]} 14.
O-O-O {[%clk 0:04:41.3]} 14... c5 {[%clk 0:04:06.6]} 15. dxc5 {[%clk 0:04:27.6]}
15... Qxc5 {[%clk 0:04:05]} 16. Be5 {[%clk 0:04:11.6]} 16... Qxe3+ {[%clk
0:03:54.2]} 17. Kb1 {[%clk 0:04:09.8]} 17... d4 {[%clk 0:03:27.4]} 18. Bxd4
{[%clk 0:04:05.6]} 18... Qe6 {[%clk 0:03:14.5]} 19. Nge2 {[%clk 0:03:45.9]}
19... Rfd8 {[%clk 0:03:09.1]} 20. Rh1 {[%clk 0:03:43.7]} 20... Kf8 {[%clk
0:02:45.6]} 21. Rg1 {[%clk 0:03:15.5]} 21... Rac8 {[%clk 0:02:30.5]} 22. Qg2
{[%clk 0:03:12.7]} 22... Rxd4 {[%clk 0:02:12.9]} 23. Qxg7+ {[%clk 0:03:09.2]}
23... Ke8 {[%clk 0:02:11.5]} 24. Bb5+ {[%clk 0:03:03.7]} 24... Kd8 {[%clk
0:02:06.9]} 25. Nxd4 {[%clk 0:02:55.5]} 25... Qe3 {[%clk 0:01:59.1]} 26. Rd1
{[%clk 0:02:47.9]} 26... Kc7 {[%clk 0:01:57.3]} 27. Qg3+ {[%clk 0:02:29.9]}
27... Kb6 {[%clk 0:01:55.2]} 28. Na4+ {[%clk 0:02:13.4]} 28... Ka5 {[%clk
0:01:54.1]} 29. a3 {[%clk 0:02:03.2]} 29... h4 {[%clk 0:01:38.9]} 30. b4# {[%clk
0:02:00.8]} 1-0

[Event "Live Chess"]
[Site "Chess.com"]
[Date "2023.05.21"]
[Round "-"]
[White "tpm07"]
[Black "Long1968"]
[Result "1-0"]
[WhiteElo "1928"]
[BlackElo "1013"]
[TimeControl "300"]
[EndTime "0:54:20 PDT"]
[Termination "tpm07 won on time"]

1. e4 {[%clk 0:04:57.5]} 1... e6 {[%clk 0:04:57.5]} 2. d4 {[%clk 0:04:54.4]}
2... d5 {[%clk 0:04:54.6]} 3. Nc3 {[%clk 0:04:53.8]} 3... Bb4 {[%clk 0:04:50]}
4. e5 {[%clk 0:04:52.4]} 4... c5 {[%clk 0:04:47.1]} 5. a3 {[%clk 0:04:51]} 5...
cxd4 {[%clk 0:04:41.7]} 6. axb4 {[%clk 0:04:47.3]} 6... dxc3 {[%clk 0:04:37.7]}
7. bxc3 {[%clk 0:04:47.2]} 7... Nc6 {[%clk 0:04:34.9]} 8. Qg4 {[%clk 0:04:30.7]}
8... Nxe5 {[%clk 0:04:13.7]} 9. Qxg7 {[%clk 0:04:28.1]} 9... Qf6 {[%clk
0:04:07.8]} 10. Qxf6 {[%clk 0:04:27.1]} 10... Nxf6 {[%clk 0:04:04.2]} 11. f4
{[%clk 0:04:13.9]} 11... Nc4 {[%clk 0:03:47.2]} 12. Bxc4 {[%clk 0:04:08.9]}
12... dxc4 {[%clk 0:03:43.8]} 13. Nf3 {[%clk 0:04:08.4]} 13... b5 {[%clk
0:03:38.1]} 14. Nd4 {[%clk 0:04:02.6]} 14... Bd7 {[%clk 0:03:28.9]} 15. Be3
{[%clk 0:03:58.8]} 15... Nd5 {[%clk 0:03:20]} 16. Bd2 {[%clk 0:03:51.6]} 16...
Rg8 {[%clk 0:03:10]} 17. g3 {[%clk 0:03:47.4]} 17... Ke7 {[%clk 0:02:55.9]} 18.
Ra6 {[%clk 0:03:35.4]} 18... Nc7 {[%clk 0:02:38.1]} 19. Ra5 {[%clk 0:03:17.4]}
19... a6 {[%clk 0:02:32]} 20. Kf2 {[%clk 0:03:15.7]} 20... Kd6 {[%clk
0:02:15.3]} 21. Rha1 {[%clk 0:03:03.9]} 21... f6 {[%clk 0:01:56]} 22. Nf3 {[%clk
0:02:29.8]} 22... e5 {[%clk 0:01:48.7]} 23. Rd1 {[%clk 0:02:20.8]} 23... Ke6
{[%clk 0:01:35.4]} 24. Re1 {[%clk 0:02:15.5]} 24... Kd5 {[%clk 0:00:58.6]} 25.
fxe5 {[%clk 0:02:10.5]} 25... fxe5 {[%clk 0:00:31.4]} 26. Rxe5+ {[%clk
0:02:06.7]} 26... Kc6 {[%clk 0:00:18]} 27. Nd4+ {[%clk 0:02:00.2]} 27... Kb7
{[%clk 0:00:10.7]} 28. Re7 {[%clk 0:01:33.9]} 1-0